lending/lending_fUSD_20260209
["ID","MTS","AMOUNT","RATE_DAILY","PERIOD"]
[404844663,1770615043511,-500.0,0.00043773,5]
[404844664,1770615043521,-161.44985994,0.00043773,10]
[404844665,1770615043530,-500.0,0.00043773,10]
[404844666,1770615043539,-166.85680183,0.00043773,10]
[404844667,1770615043548,-500.0,0.00043773,10]
[404844668,1770615043557,-472.16943484,0.00043773,10]
[404844669,1770615043568,-513.08347709,0.00043773,10]
[404844670,1770615043577,-500.0,0.00043773,10]
[404844671,1770615043586,-165.00363968,0.00043773,10]
[404844672,1770615043595,-209.12042357,0.00043773,10]
[404844673,1770615043604,-160.36847947,0.00043773,10]
[404844674,1770615043613,-500.0,0.00043773,10]
[404844675,1770615043622,-500.0,0.00043773,10]
[404844676,1770615043631,-500.0,0.00043773,10]
[404844677,1770615043640,-500.0,0.00043773,10]
[404844678,1770615043649,-307.81141901,0.00043773,10]
[404844679,1770615043658,-500.0,0.00043773,10]
[404844680,1770615043667,-208.68091653,0.00043773,10]
[404844681,1770615043676,-500.0,0.00043773,10]
[404844682,1770615043685,-500.0,0.00043773,10]
[404844683,1770615043694,-500.0,0.00043773,7]
[404844684,1770615043703,-500.0,0.00043773,10]
[404844685,1770615043712,-500.0,0.00043773,10]
[404844686,1770615043722,-500.0,0.00043773,10]
[404844687,1770615043731,-500.0,0.00043773,10]
[404844688,1770615043740,-500.0,0.00043773,10]
[404844689,1770615043750,-500.0,0.00043773,10]
[404844690,1770615043759,-162.90649978,0.00043773,2]
[404844691,1770615043769,-500.0,0.00043773,10]
[404844692,1770615043778,-162.34170443,0.00043773,2]
[404844693,1770615043788,-501.2745488,0.00043773,10]
[404844694,1770615043798,-169.95855216,0.00043773,10]
[404844695,1770615043807,-309.71303506,0.00043773,10]
[404844696,1770615043816,-510.05803052,0.00043773,10]
[404844697,1770615043825,-500.0,0.00043773,10]
[404844698,1770615043836,-264.49905291,0.00043773,10]
[404844699,1770615043845,-500.0,0.00043773,10]
[404844700,1770615043855,-1000.0,0.000438,30]
[404844701,1770615043864,-237.39446606,0.000438,120]
[404844702,1770615043875,-1999.0,0.00043835,120]
[404844703,1770615043888,-1000.0,0.00043836,30]
[404844704,1770615043897,-4000.0,0.00043836,10]
[404844705,1770615043906,-150.0,0.00043862,30]
[404844706,1770615043915,-150.0,0.00043862,30]
[404844707,1770615043923,-7033.23,0.000439,2]
[404844708,1770615043934,-150.0,0.00043901,30]
[404844709,1770615043943,-6258.0,0.00043902,7]
[404844710,1770615043952,-500.0,0.00043907,60]
[404844711,1770615043962,-500.0,0.00043907,60]
[404844712,1770615043971,-201.07511,0.0004391,120]
[404844713,1770615043980,-201.07511,0.0004391,120]
[404844714,1770615043989,-920.82030181,0.00043946,120]
[404844715,1770615043998,-168.0,0.00043989,2]
[404844716,1770615044007,-168.0,0.00043999,7]
[404844717,1770615044016,-247.31803698,0.00044,120]
[404844718,1770615044026,-13726.50808153,0.00044,4]
[404844719,1770615044034,-500.0,0.00044054,60]
[404844720,1770615044043,-155.41981542,0.00044054,60]
[404844721,1770615044053,-150.0,0.00044054,60]
[404844722,1770615044062,-150.0,0.00044054,60]
[404844723,1770615044071,-150.0,0.00044054,60]
[404844724,1770615044080,-150.0,0.00044054,60]
[404844725,1770615044089,-150.0,0.00044054,60]
[404844726,1770615044099,-274.38042852,0.00044054,60]
[404844727,1770615044108,-150.0,0.00044054,60]
[404844728,1770615044118,-150.0,0.00044054,60]
[404844729,1770615044127,-152.14922534,0.00044054,60]
[404844730,1770615044136,-150.0,0.00044054,60]
[404844731,1770615044147,-150.0,0.00044054,60]
[404844732,1770615044157,-150.0,0.00044054,60]
[404844733,1770615044167,-150.0,0.00044054,120]
[404844734,1770615044176,-150.0,0.00044054,2]
[404844735,1770615044185,-154.43406043,0.00044054,60]
[404844736,1770615044194,-150.0,0.00044054,60]
[404844737,1770615044203,-500.0,0.00044054,60]
[404844738,1770615044215,-154.02338802,0.00044054,60]
[404844739,1770615044225,-150.0,0.00044054,2]
[404844740,1770615044236,-150.0,0.00044054,60]
[404844741,1770615044247,-150.0,0.00044054,60]
[404844742,1770615044258,-718.55,0.00044081,120]
[404844743,1770615044269,-726.24228816,0.000441,30]
[404844744,1770615044280,-153.0,0.000441,120]
[404844745,1770615044291,-526.38561146,0.00044109,60]
[404844746,1770615044299,-150.0,0.00044109,60]
[404844747,1770615044310,-152.91583051,0.00044109,60]
[404844748,1770615044321,-150.0,0.00044109,60]
[404844749,1770615044330,-150.0,0.00044109,60]
[404844750,1770615044339,-204.01758521,0.00044109,60]
[404844751,1770615044349,-150.0,0.00044109,60]
[404844752,1770615044359,-150.0,0.00044109,60]
[404844753,1770615044369,-159.40930569,0.00044109,60]
[404844754,1770615044380,-150.0,0.00044109,60]
[404844755,1770615044389,-150.0,0.00044109,60]
[404844757,1770615044399,-150.0,0.00044109,120]
[404844759,1770615044409,-150.0,0.00044109,60]
[404844761,1770615044419,-500.0,0.00044109,60]
[404844762,1770615044428,-150.0,0.00044109,60]
[404844763,1770615044437,-150.0,0.00044109,60]
[404844764,1770615044446,-500.0,0.00044109,120]
[404844765,1770615044456,-500.0,0.00044109,120]
[404844766,1770615044466,-500.0,0.00044109,120]
[404844767,1770615044478,-500.0,0.00044109,120]
[404844768,1770615044487,-500.0,0.00044109,120]
[404844769,1770615044495,-500.0,0.00044109,120]
[404844770,1770615044506,-500.0,0.00044109,120]
[404844771,1770615044516,-500.0,0.00044109,120]
[404844772,1770615044527,-500.0,0.00044109,120]
[404844773,1770615044537,-500.0,0.00044109,120]
[404844774,1770615044547,-500.0,0.00044109,120]
[404844775,1770615044557,-500.0,0.00044109,120]
[404844776,1770615044567,-500.0,0.00044109,120]
[404844777,1770615044576,-500.0,0.00044109,120]
[404844778,1770615044585,-500.0,0.00044109,120]
[404844779,1770615044595,-500.0,0.00044109,120]
[404844780,1770615044605,-500.0,0.00044109,120]
[404844781,1770615044614,-500.0,0.00044109,120]
[404844782,1770615044623,-500.0,0.00044109,120]
[404844783,1770615044633,-500.0,0.00044109,120]
[404844784,1770615044643,-500.0,0.00044109,120]
[404844785,1770615044652,-500.0,0.00044109,120]
[404844786,1770615044661,-500.0,0.00044109,120]
[404844787,1770615044670,-316.02714742,0.00044109,120]
[404844788,1770615044679,-200.99075757,0.00044109,120]
[404844789,1770615044689,-1000.0,0.0004411,30]
[404844790,1770615044698,-10000.0,0.00044156,2]
[404844791,1770615044708,-150.0,0.00044164,60]
[404844792,1770615044717,-150.0,0.00044164,60]
[404844793,1770615044726,-160.8224738,0.00044164,60]
[404844794,1770615044736,-211.9030481,0.00044164,60]
[404844795,1770615044746,-201.50054242,0.00044164,60]
[404844796,1770615044755,-202.70929668,0.00044164,60]
[404844797,1770615044764,-253.69312086,0.00044164,60]
[404844798,1770615044774,-150.0,0.00044164,120]
[404844799,1770615044783,-208.6248543,0.00044164,60]
[404844800,1770615044792,-500.0,0.00044164,60]
[404844801,1770615044802,-217.43214111,0.00044164,60]
[404844802,1770615044811,-206.65058107,0.00044164,60]
[404844803,1770615044822,-500.0,0.00044175,120]
[404844804,1770615044831,-150.0,0.00044178,30]
[404844805,1770615044840,-39200.74341476,0.000442,120]
[404844806,1770615045368,-642.20258695,0.00032567,2]
[404844808,1770615045637,-40457.37866307,0.00032567,2]
[404844809,1770615045650,-28914.77188359,0.00035011,2]
[404844810,1770615045902,-365.50436217,0.00035011,2]
[404844812,1770615064828,195.0,0.00035011,120]
[404844813,1770615066342,500.0,0.00035011,120]
[404844814,1770615067339,300.0,0.00035011,120]
[404844815,1770615113261,238.5708123,0.00017999,2]
[404844820,1770615427376,500.0,0.00031953,120]
[404844821,1770615466565,250.0,0.00015,2]
[404844822,1770615468041,300.0,0.00017,2]
[404844823,1770615482721,300.0,0.000275,120]
[404844824,1770615482838,300.0,0.00026012,120]
[404844825,1770615482942,300.0,0.00027715,120]
[404844826,1770615483047,168.44144585,0.00027715,120]
[404844827,1770615485897,195.0,0.000275,120]
[404844828,1770615485985,195.0,0.00026012,120]
[404844829,1770615486090,195.0,0.00027715,120]
[404844830,1770615486186,195.0,0.00027715,120]
[404844832,1770615532691,311.13644242,0.00017999,2]
[404844833,1770615567580,500.0,0.00017999,2]
[404844834,1770615567803,500.0,0.00017999,2]
[404844835,1770615568075,165.99137209,0.00017999,2]
[404844837,1770615823512,2213.49,0.00033942,120]
[404844838,1770616231701,-1001.0,0.00025,6]
[404844839,1770616231712,-162.29867449,0.00025,2]
[404844840,1770616231722,-282.45138859,0.00025,2]
[404844841,1770616231731,-1054.98940102,0.00027024,2]
[404844842,1770616231759,-176.39206686,0.00027024,2]
[404844843,1770616231769,-247.68646458,0.000274,2]
[404844844,1770616231779,-162.29867449,0.000275,2]
[404844845,1770616231788,-250.0,0.000275,2]
[404844846,1770616231797,-250.0,0.000275,2]
[404844847,1770616231807,-1231.38146788,0.00027982,2]
[404844848,1770616231816,-1231.38146788,0.00028939,2]
[404844849,1770616231825,-1200.0,0.00029047,2]
[404844850,1770616231835,-181.44,0.00029048,2]
[404844851,1770616231844,-300.0,0.00029896,2]
[404844852,1770616231854,-1231.38146788,0.00029897,2]
[404844853,1770616231863,-300.0,0.00029999,2]
[404844854,1770616231872,-300.0,0.00029999,2]
[404844855,1770616231881,-1000.0,0.0003,10]
[404844856,1770616231890,-247.68646457,0.00030169,2]
[404844857,1770616231899,-1200.0,0.0003085,2]
[404844858,1770616231913,-1231.38146788,0.00030854,2]
[404844859,1770616231924,-1334.0,0.00031472,3]
[404844860,1770616231934,-420.0,0.00032225,3]
[404844861,1770616231944,-398.0,0.00032332,3]
[404844862,1770616231953,-196.43,0.000326,2]
[404844863,1770616231963,-163.82,0.000326,2]
[404844864,1770616231974,-247.68646457,0.00032938,2]
[404844865,1770616231984,-250.0,0.00033033,2]
[404844866,1770616231994,-170.0,0.00033037,2]
[404844867,1770616232004,-9999.99,0.00033038,2]
[404844868,1770616232014,-9999.99,0.00033038,2]
[404844869,1770616232023,-57268.86,0.00033038,10]
[404844870,1770616232033,-150.99,0.00033038,2]
[404844871,1770616232045,-439.35,0.00033038,2]
[404844872,1770616232055,-9999.99,0.00033038,2]
[404844873,1770616232064,-15663.13,0.00033513,2]
[404844875,1770616232076,-459.63,0.00033691,2]
[404844877,1770616232086,-9758.95,0.00033717,2]
[404844878,1770616232096,-1231.38146788,0.00033727,2]
[404844880,1770616232105,-1000.0,0.0003373,20]
[404844883,1770616232115,-500.0,0.0003391,2]
[404844885,1770616232129,-184.25,0.00034025,2]
[404844886,1770616232138,-4201.55,0.00034156,2]
[404844888,1770616232153,-417.84,0.00034184,2]
[404844890,1770616232162,-255.43,0.00034342,2]
[404844892,1770616232173,-160.0,0.00034496,2]
[404844894,1770616232184,-1231.38146788,0.00034685,2]
[404844895,1770616232194,-166.67,0.00034756,2]
[404844896,1770616232204,-459.63,0.00035376,2]
[404844897,1770616232214,-4586.14,0.00035439,2]
[404844898,1770616232224,-1231.38146788,0.00035643,2]
[404844899,1770616232233,-1000.0,0.00035709,2]
[404844900,1770616232246,-417.84,0.00036083,2]
[404844901,1770616232255,-175.785,0.00036434,45]
[404844902,1770616232265,-2280.534,0.00036434,45]
[404844903,1770616232275,-4478.00151963,0.000365,2]
[404844904,1770616232285,-1231.38146788,0.000366,2]
[404844905,1770616232294,-459.63,0.0003706,2]
[404844906,1770616232304,-200.0,0.00037121,2]
[404844907,1770616232316,-175.80757503,0.000372,120]
[404844908,1770616232329,-4478.00151961,0.0003737,2]
[404844909,1770616232339,-200.0,0.00037452,2]
[404844910,1770616232348,-1231.38146788,0.00037558,2]
[404844911,1770616232357,-166.67,0.00037625,2]
[404844912,1770616232367,-417.84,0.00037982,2]
[404844913,1770616232377,-4478.00151961,0.0003824,2]
[404844914,1770616232386,-1231.38146788,0.00038515,2]
[404844915,1770616232398,-500.0,0.00038724,60]
[404844916,1770616232408,-500.0,0.00038724,2]
[404844917,1770616232417,-3207.3971749,0.00038725,2]
[404844918,1770616232426,-166772.226047,0.00038725,2]
[404844919,1770616232436,-459.63,0.00038745,2]
[404844920,1770616232445,-4478.00151961,0.0003911,2]
[404844921,1770616232454,-8678.81529929,0.00039131,2]
[404844922,1770616232467,-27115.18470071,0.00039131,2]
[404844923,1770616232476,-1231.38146788,0.00039473,2]
[404844924,1770616232486,-9141.88,0.00039635,2]
[404844925,1770616232495,-1474.06806,0.000397,120]
[404844926,1770616232504,-417.84,0.00039881,2]
[404844927,1770616232517,-853.10618091,0.00039977,2]
[404844928,1770616232527,-305.17282609,0.00039977,2]
[404844929,1770616232536,-881.82002945,0.00039977,2]
[404844930,1770616232546,-1254.08933548,0.00039977,2]
[404844931,1770616232555,-306.34825984,0.00039977,2]
[404844933,1770616232564,-457.40429292,0.00039977,2]
[404844935,1770616232574,-370.28201213,0.00039977,2]
[404844937,1770616232583,-517.04147964,0.00039977,2]
[404844939,1770616232592,-305.32494931,0.00039977,2]
[404844941,1770616232602,-572.19561471,0.00039977,2]
[404844943,1770616232612,-1078.78219747,0.00039977,2]
[404844945,1770616232622,-300.8912378,0.00039977,2]
[404844947,1770616232632,-1142.75555076,0.00039977,2]
[404844949,1770616232641,-408.78504794,0.00039977,2]
[404844951,1770616232650,-1181.21540364,0.00039977,2]
[404844953,1770616232660,-306.34825984,0.00039977,2]
[404844955,1770616232669,-612.70211161,0.00039977,2]
[404844957,1770616232678,-496.00011525,0.00039977,2]
[404844959,1770616232687,-517.04147964,0.00039977,2]
[404844961,1770616232696,-305.32494931,0.00039977,2]
[404844963,1770616232705,-572.19561471,0.00039977,2]
[404844966,1770616232717,-1078.78219747,0.00039977,2]
[404844968,1770616232726,-4478.00151961,0.0003998,15]
[404844970,1770616232735,-154.0,0.0004,120]
[404844972,1770616232745,-500.0,0.0004,5]
[404844974,1770616232754,-3040.0,0.0004,12]
[404844976,1770616232763,-500.0,0.0004,5]
[404844978,1770616232771,-500.0,0.0004,5]
[404844980,1770616232780,-170.50126432,0.0004,5]
[404844982,1770616232789,-162.65190433,0.0004,5]
[404844984,1770616232798,-500.0,0.0004,5]
[404844986,1770616232807,-500.0,0.0004,5]
[404844988,1770616232816,-3000.0,0.0004,11]
[404844990,1770616232826,-1005.0,0.0004,12]
[404844992,1770616232835,-618.447185,0.0004,120]
[404844994,1770616232845,-500.0,0.0004,5]
[404844996,1770616232859,-500.0,0.0004,5]
[404844998,1770616232869,-500.0,0.0004,5]
[404845000,1770616232878,-500.0,0.0004,5]
[404845002,1770616232888,-541.85466405,0.0004,5]
[404845004,1770616232897,-544.38936191,0.0004,5]
[404845006,1770616232909,-500.0,0.0004,5]
[404845008,1770616232918,-500.0,0.0004,5]
[404845010,1770616232927,-500.0,0.0004,5]
[404845012,1770616232936,-500.0,0.0004,2]
[404845014,1770616232946,-601.7999999,0.0004,5]
[404845016,1770616232955,-448.66891635,0.0004,5]
[404845018,1770616232965,-260.08886255,0.0004,5]
[404845020,1770616232975,-500.0,0.0004,5]
[404845022,1770616232984,-500.0,0.0004,5]
[404845024,1770616232993,-157.82,0.00040033,2]
[404845026,1770616233002,-152.0,0.00040072,3]
[404845028,1770616233012,-10797.54890844,0.00040147,15]
[404845031,1770616233023,-150.0,0.00040247,30]
[404845033,1770616233036,-152.14922534,0.00040247,30]
[404845035,1770616233046,-500.0,0.00040247,30]
[404845037,1770616233055,-150.0,0.00040247,30]
[404845039,1770616233064,-150.0,0.00040247,30]
[404845041,1770616233073,-154.43406043,0.00040247,30]
[404845043,1770616233083,-150.0,0.00040247,30]
[404845045,1770616233093,-154.02338802,0.00040247,30]
[404845046,1770616233102,-150.0,0.00040247,2]
[404845049,1770616233112,-150.0,0.00040247,30]
[404845051,1770616233121,-500.0,0.00040247,30]
[404845053,1770616233131,-155.41981542,0.00040247,30]
[404845055,1770616233142,-150.0,0.00040247,30]
[404845057,1770616233151,-150.0,0.00040247,30]
[404845058,1770616233160,-150.0,0.00040247,30]
[404845060,1770616233170,-150.0,0.00040247,30]
[404845063,1770616233180,-150.0,0.00040247,30]
[404845064,1770616233189,-150.0,0.00040247,30]
[404845066,1770616233199,-274.38042852,0.00040247,30]
[404845068,1770616233208,-150.0,0.00040302,30]
[404845070,1770616233217,-500.0,0.00040302,30]
[404845073,1770616233227,-150.0,0.00040302,30]
[404845075,1770616233236,-150.0,0.00040302,30]
[404845077,1770616233250,-150.0,0.00040302,30]
[404845079,1770616233259,-150.0,0.00040302,30]
[404845080,1770616233268,-526.38561146,0.00040302,30]
[404845082,1770616233278,-150.0,0.00040302,30]
[404845084,1770616233288,-152.91583051,0.00040302,30]
[404845087,1770616233298,-150.0,0.00040302,30]
[404845090,1770616233318,-150.0,0.00040302,30]
[404845092,1770616233328,-204.01758521,0.00040302,30]
[404845094,1770616233338,-150.0,0.00040302,30]
[404845096,1770616233348,-201.50054242,0.00040357,30]
[404845098,1770616233358,-500.0,0.00040357,30]
[404845100,1770616233367,-206.65058107,0.00040357,30]
[404845102,1770616233377,-202.70929668,0.00040357,30]
[404845104,1770616233386,-208.6248543,0.00040357,30]
[404845106,1770616233396,-217.43214111,0.00040357,30]
[404845108,1770616233407,-150.0,0.00040357,30]
[404845110,1770616233416,-160.8224738,0.00040357,30]
[404845112,1770616233425,-150.0,0.00040357,30]
[404845114,1770616233435,-211.9030481,0.00040357,30]
[404845116,1770616233444,-500.0,0.00040411,30]
[404845118,1770616233453,-190.04311126,0.00040411,30]
[404845120,1770616233462,-150.0,0.00040411,30]
[404845122,1770616233472,-459.63,0.0004043,2]
[404845124,1770616233482,-500.0,0.00040466,30]
[404845126,1770616233491,-213.66563777,0.00040466,30]
[404845129,1770616233504,-166.67,0.00040493,2]
[404845131,1770616233514,-500.0,0.00040521,30]
[404845133,1770616233523,-1000.0,0.00040548,5]
[404845135,1770616233532,-227.66530803,0.00040548,5]
[404845136,1770616233542,-1000.0,0.00040548,5]
[404845139,1770616233552,-1000.66593252,0.00040548,5]
[404845140,1770616233561,-1005.82893867,0.00040548,5]
[404845143,1770616233570,-1000.0,0.00040548,5]
[404845144,1770616233580,-1000.0,0.00040548,5]
[404845147,1770616233590,-1000.0,0.00040548,5]
[404845148,1770616233600,-1000.0,0.00040548,5]
[404845151,1770616233610,-1000.0,0.00040548,5]
[404845153,1770616233619,-1000.0,0.00040548,5]
[404845155,1770616233629,-501.05560458,0.00040548,5]
[404845157,1770616233638,-1005.4959813,0.00040548,2]
[404845158,1770616233648,-1000.0,0.00040548,5]
[404845161,1770616233657,-1002.54234669,0.00040548,5]
[404845163,1770616233667,-1000.0,0.00040548,2]
[404845165,1770616233676,-500.0,0.00040576,30]
[404845167,1770616233686,-10797.54890835,0.00040612,15]
[404845169,1770616233700,-500.0,0.00040631,30]
[404845171,1770616233710,-500.0,0.00040685,30]
[404845173,1770616233720,-500.0,0.0004074,30]
[404845175,1770616233729,-500.0,0.00040795,30]
[404845177,1770616233738,-500.0,0.0004085,30]
[404845179,1770616233748,-4478.00151961,0.0004085,15]
[404845181,1770616233758,-500.0,0.00040905,30]
[404845183,1770616233767,-500.0,0.00040959,30]
[404845185,1770616233777,-262.18408321,0.00041014,30]
[404845187,1770616233787,-10797.54890835,0.00041077,15]
[404845189,1770616233796,-1023.13640462,0.00041096,10]
[404845191,1770616233806,-1500.0,0.00041096,10]
[404845194,1770616233816,-314.04026957,0.00041096,10]
[404845195,1770616233825,-425.72512087,0.00041096,10]
[404845197,1770616233835,-1500.0,0.00041096,10]
[404845200,1770616233844,-1500.0,0.00041096,10]
[404845202,1770616233854,-200.0,0.00041096,20]
[404845204,1770616233863,-200.0,0.00041096,20]
[404845206,1770616233872,-200.0,0.00041096,20]
[404845208,1770616233882,-150.0,0.00041096,30]
[404845210,1770616233895,-154.0,0.000411,120]
[404845212,1770616233905,-159.40930569,0.00041151,30]
[404845214,1770616233915,-168.0,0.00041207,2]
[404845216,1770616233924,-168.0,0.00041243,2]
[404845218,1770616233934,-10797.54890835,0.00041541,15]
[404845220,1770616233943,-2000.0,0.00041644,10]
[404845222,1770616233952,-475.51068713,0.00041644,10]
[404845224,1770616233961,-453.97092283,0.00041644,10]
[404845226,1770616233971,-168.0,0.00041655,7]
[404845228,1770616233980,-417.84,0.0004178,2]
[404845230,1770616233990,-10797.54890835,0.00042006,15]
[404845232,1770616233999,-2500.0,0.00042192,10]
[404845234,1770616234009,-154.0,0.000422,120]
[404845236,1770616234019,-168.0,0.00042413,2]
[404845238,1770616234029,-234.52,0.00042459,14]
[404845240,1770616234038,-10797.54890835,0.00042471,15]
[404845242,1770616234048,-2500.0,0.0004274,7]
[404845244,1770616234057,-3000.0,0.0004274,10]
[404845247,1770616234068,-341.47,0.00042748,14]
[404845249,1770616234077,-500.0,0.00042811,60]
[404845251,1770616234090,-500.0,0.00042811,60]
[404845253,1770616234099,-840.0,0.00042845,16]
[404845255,1770616234109,-10797.54890835,0.00042936,15]
[404845257,1770616234119,-1000.0,0.00043,120]
[404845259,1770616234128,-1000.0,0.00043,60]
[404845261,1770616234138,-200.0,0.00043,60]
[404845263,1770616234148,-10000.0,0.00043,120]
[404845265,1770616234158,-500.0,0.00043041,2]
[404845267,1770616234167,-42026.0,0.00043042,30]
[404845269,1770616234177,-160.0,0.00043042,30]
[404845271,1770616234187,-168.0,0.0004305,2]
[404845273,1770616234196,-1529.36428534,0.00043116,2]
[404845275,1770616234206,-359.71184585,0.00043257,30]
[404845277,1770616234216,-1000.0,0.00043274,2]
[404845279,1770616234225,-1127.76238011,0.00043288,10]
[404845281,1770616234235,-2000.0,0.000433,2]
[404845283,1770616234247,-500.0,0.0004335,30]
[404845285,1770616234257,-500.0,0.0004335,60]
[404845287,1770616234265,-500.0,0.0004335,30]
[404845318,1770616234532,-168.0,0.00043351,2]
[404845320,1770616234542,-168.0,0.00043373,2]
[404845322,1770616234552,-836.66813978,0.000434,120]
[404845324,1770616234561,-154.0,0.000434,120]
[404845326,1770616234571,-200.0,0.000434,120]
[404845328,1770616234581,-200.0,0.000434,120]
[404845330,1770616234591,-200.0,0.000434,120]
[404845332,1770616234600,-10797.54890835,0.000434,15]
[404845334,1770616234610,-42026.0,0.00043486,30]
[404845336,1770616234621,-168.0,0.00043497,2]
[404845339,1770616234632,-200.0,0.000435,120]
[404845340,1770616234641,-1000.0,0.00043562,30]
[404845343,1770616234651,-181.44,0.00043573,2]
[404845344,1770616234660,-168.0,0.00043577,2]
[404845347,1770616234670,-1000.61373123,0.0004363,10]
[404845349,1770616234679,-300.091343,0.00043658,118]
[404845350,1770616234691,-417.84,0.0004368,2]
[404845353,1770616234700,-715.6670453,0.00043683,2]
[404845354,1770616234710,-532.6,0.00043683,2]
[404845356,1770616234720,-532.6,0.00043683,2]
[404845358,1770616234729,-532.6,0.00043683,2]
[404845361,1770616234739,-532.6,0.00043683,2]
[404845362,1770616234749,-532.6,0.00043683,2]
[404845363,1770616234758,-532.6,0.00043683,2]
[404845364,1770616234767,-532.6,0.00043683,2]
[404845365,1770616234776,-532.6,0.00043683,2]
[404845366,1770616234785,-532.6,0.00043683,2]
[404845367,1770616234802,-532.6,0.00043683,2]
[404845368,1770616234812,-532.6,0.00043683,2]
[404845369,1770616234822,-532.6,0.00043683,2]
[404845370,1770616234831,-532.6,0.00043683,2]
[404845371,1770616234841,-532.6,0.00043683,2]
[404845373,1770616234850,-532.6,0.00043683,2]
[404845375,1770616234860,-532.6,0.00043683,2]
[404845377,1770616234870,-532.6,0.00043683,2]
[404845379,1770616234881,-937.92,0.00043683,2]
[404845381,1770616234891,-523.4,0.00043723,120]
[404845383,1770616234901,-500.0,0.00043773,8]
[404845385,1770616234911,-500.0,0.00043773,10]
[404845387,1770616234922,-266.02436079,0.00043773,8]
[404845389,1770616234933,-500.0,0.00043773,3]
[404845391,1770616234943,-163.55316756,0.00043773,10]
[404845393,1770616234954,-163.32665534,0.00043773,10]
[404845395,1770616234964,-500.0,0.00043773,10]
[404845397,1770616234974,-500.0,0.00043773,10]
[404845400,1770616234984,-500.0,0.00043773,10]
[404845402,1770616234995,-500.0,0.00043773,10]
[404845404,1770616235005,-500.0,0.00043773,10]
[404845406,1770616235014,-500.0,0.00043773,10]
[404845408,1770616235025,-500.0,0.00043773,10]
[404845410,1770616235034,-336.84619404,0.00043773,10]
[404845412,1770616235044,-500.0,0.00043773,10]
[404845414,1770616235054,-500.0,0.00043773,10]
[404845416,1770616235064,-500.0,0.00043773,10]
[404845418,1770616235074,-500.0,0.00043773,10]
[404845420,1770616235084,-161.72727543,0.00043773,2]
[404845422,1770616235096,-160.70763868,0.00043773,10]
[404845424,1770616235106,-500.0,0.00043773,10]
[404845426,1770616235117,-160.46433522,0.00043773,10]
[404845428,1770616235127,-500.0,0.00043773,10]
[404845430,1770616235137,-500.0,0.00043773,10]
[404845432,1770616235147,-500.0,0.00043773,10]
[404845434,1770616235157,-500.82285468,0.00043773,10]
[404845436,1770616235166,-160.40758038,0.00043773,10]
[404845438,1770616235176,-160.22890583,0.00043773,10]
[404845440,1770616235185,-500.0,0.00043773,10]
[404845442,1770616235194,-449.68415735,0.00043773,10]
[404845444,1770616235204,-166.85680183,0.00043773,10]
[404845446,1770616235213,-500.0,0.00043773,10]
[404845448,1770616235222,-500.0,0.00043773,10]
[404845450,1770616235232,-165.00363968,0.00043773,10]
[404845451,1770616235245,-209.12042357,0.00043773,10]
[404845452,1770616235254,-307.81141901,0.00043773,10]
[404845453,1770616235263,-500.0,0.00043773,10]
[404845454,1770616235273,-500.0,0.00043773,10]
[404845455,1770616235284,-500.0,0.00043773,10]
[404845456,1770616235293,-500.0,0.00043773,10]